fUST/lending_fUST_20250927
["ID","MTS","AMOUNT","RATE_DAILY","PERIOD"]
[387985473,1758950300454,2176.7633611,0.00026296,2]
[387985474,1758950300477,455.69032331,0.00026296,2]
[387985475,1758950315869,2632.45368441,0.00026296,2]
[387985476,1758950331870,2173.94921336,0.00026296,2]
[387985477,1758950339826,1331.0021898,0.00026296,2]
[387985478,1758950354190,241.89410337,0.00024932,15]
[387985479,1758950355734,342.8766926,0.00026296,2]
[387985480,1758950360546,2822.14379315,0.000258,2]
[387985481,1758950360568,3819.9411752,0.000258,2]
[387985482,1758950363681,1204.81630465,0.00026296,2]
[387985483,1758950379787,1123.03175928,0.00026296,2]
[387985484,1758950467873,160.0,0.0002,7]
[387985485,1758950476856,160.0,0.0002,7]
[387985486,1758950523765,364.64169477,0.000253,2]
[387985488,1758950590353,160.0,0.00026296,2]
[387985489,1758950614589,960.0,0.00026296,2]
[387985490,1758950635085,182.5258603,0.00026296,2]
[387985491,1758950668823,164.0,0.00023288,9]
[387985492,1758950731410,598.03330986,0.00026296,2]
[387985493,1758950748164,217.0,9e-07,2]
[387985494,1758950749275,217.0,9e-07,2]
[387985500,1758950841094,-393.39332517,0.00027153,2]
[387985501,1758950841116,-327.0,0.00027252,2]
[387985502,1758950841139,-209.65,0.00027253,2]
[387985503,1758950841160,-500.0,0.00027253,2]
[387985504,1758950841183,-500.0,0.00027253,2]
[387985505,1758950841206,-500.0,0.00027253,2]
[387985506,1758950841229,-500.0,0.00027253,2]
[387985507,1758950841252,-398.73001548,0.00027253,2]
[387985508,1758950841273,-162.41542007,0.00027255,2]
[387985509,1758950841294,-601.00268923,0.0002967,2]
[387985510,1758950861981,1002.0,0.00022,2]
[387985511,1758950868663,252.66510701,0.000209,2]
[387985512,1758950868755,6473.90227989,0.00018,2]
[387985513,1758950873281,2271.4426131,0.00018,2]
[387985514,1758950873305,6805.84958839,0.00018,2]
[387985515,1758950893645,561.69861472,0.000125,2]
[387985516,1758950895385,227.32182254,0.00018,2]
[387985517,1758950895409,2632.46179689,0.00018,2]
[387985518,1758950895432,5106.21638057,0.00018,2]
[387985519,1758950899671,273.10067795,0.00021,2]
[387985520,1758950907155,4620.69294148,0.00025,3]
[387985521,1758950907191,6119.28232874,0.00025,3]
[387985522,1758950914036,3880.72767126,0.00015,2]
[387985523,1758950914067,10000.01,0.00015,2]
[387985524,1758950914097,3120.38971183,0.00015,2]
[387985526,1758950915042,179.10629886,0.0002629,2]
[387985527,1758950915071,125.74595059,0.0002629,2]
[387985528,1758950916076,1000.0,0.0001,2]
[387985529,1758950916559,182.5258603,0.00018,2]
[387985530,1758950916881,467.75208667,0.00018,2]
[387985532,1758950919748,212.77725852,0.00016,2]
[387985533,1758950919817,663.95392898,0.000245,2]
[387985534,1758950921661,1310.0001398,0.000203,2]
[387985535,1758950921918,2380.70115148,0.000215,2]
[387985536,1758950923322,161.0,0.00026,5]
[387985537,1758950924507,557.68977213,0.0002,2]
[387985538,1758950924530,4812.58331882,0.0002,2]
[387985539,1758950940236,269.73210003,0.00025205,2]
[387985540,1758950948086,-361.35697555,0.00029373,2]
[387985541,1758950971101,-79.44825912,0.00029373,2]
[387985542,1758950975076,1393.02099209,0.00029079,2]
[387985543,1758950982282,157.0,0.00023288,9]
[387985609,1758951032042,-558.80491238,0.00028934,22]
[387985611,1758951032052,-227.32182254,0.00028979,2]
[387985613,1758951032062,-1201.22326508,0.00029079,2]
[387985618,1758951032102,-2405.75574283,0.00029079,2]
[387985619,1758951032112,-35.03809497,0.0002967,2]
[387985621,1758951032121,-248.1952337,0.00029848,2]
[387985623,1758951032130,-776.0,0.00029942,2]
[387985625,1758951032140,-215.62939707,0.0003,120]
[387985627,1758951032150,-776.0,0.00030175,7]
[387985629,1758951032160,-508.0,0.00030453,2]
[387985631,1758951032169,-508.0,0.00030499,2]
[387985633,1758951032178,-178.1770971,0.00030506,2]
[387985634,1758951032187,-508.0,0.00030914,7]
[387985636,1758951032198,-480.0,0.00031108,120]
[387985638,1758951032207,-160.0,0.00031138,2]
[387985640,1758951032217,-168.0,0.00031329,2]
[387985642,1758951032226,-3190.37535285,0.0003133,2]
[387985644,1758951032235,-168.0,0.0003133,2]
[387985646,1758951032244,-1000.0,0.00031506,5]
[387985647,1758951032254,-168.0,0.00031511,2]
[387985649,1758951032263,-168.0,0.00031627,2]
[387985651,1758951032273,-500.0,0.00031674,15]
[387985652,1758951032282,-260.0,0.00031685,2]
[387985654,1758951032291,-1000.0,0.00031917,5]
[387985655,1758951032300,-168.0,0.00032058,2]
[387985657,1758951032309,-168.0,0.00032085,2]
[387985658,1758951032319,-161.527,0.00032085,31]
[387985659,1758951032328,-180.741,0.00032085,31]
[387985660,1758951032338,-1713.0,0.00032133,7]
[387985661,1758951032347,-360.0,0.00032233,2]
[387985662,1758951032356,-1713.0,0.00032244,2]
[387985663,1758951032365,-1000.0,0.00032328,5]
[387985664,1758951032374,-1000.0,0.00032739,5]
[387985665,1758951032383,-510.1858937,0.00032741,15]
[387985666,1758951032393,-725.15572821,0.00032742,2]
[387985667,1758951032402,-327.28684283,0.00032742,2]
[387985668,1758951032411,-337.50093061,0.00032742,2]
[387985669,1758951032420,-384.45291547,0.00032742,2]
[387985670,1758951032430,-692.01524785,0.00032742,2]
[387985671,1758951032439,-169.17655534,0.00032742,2]
[387985672,1758951032449,-841.54029459,0.00032742,2]
[387985673,1758951032458,-169.5295138,0.00032742,2]
[387985674,1758951032467,-168.46709317,0.00032742,2]
[387985675,1758951032477,-303.2407677,0.00032742,2]
[387985676,1758951032487,-1000.0,0.00032781,2]
[387985677,1758951032496,-250.0,0.00032781,2]
[387985678,1758951032505,-250.0,0.00032781,2]
[387985679,1758951032514,-250.0,0.00032781,2]
[387985680,1758951032524,-250.0,0.00032781,2]
[387985681,1758951032533,-289.08802582,0.00032781,2]
[387985682,1758951032543,-456.13492574,0.00032783,2]
[387985683,1758951032552,-500.0,0.00032799,15]
[387985684,1758951032561,-1569.92257521,0.000328,25]
[387985794,1758951038100,-345.84781417,0.00031505,2]
[387985797,1758951038110,-3646.74742479,0.000328,25]
[387985798,1758951038120,-11787.40586104,0.00032801,2]
[387985801,1758951038131,-15212.54827813,0.00032801,2]
[387985803,1758951038141,-8458.411758,0.00032804,2]
[387985805,1758951038151,-8004.90311043,0.00032804,2]
[387985807,1758951038160,-7778.69685354,0.00032804,2]
[387985809,1758951038171,-2304.93993855,0.00032804,2]
[387985811,1758951038180,-161.80085215,0.00032804,2]
[387985813,1758951038190,-500.0,0.00032804,2]
[387985815,1758951038199,-353.41901249,0.0003287,2]
[387985817,1758951038211,-1657.43010347,0.0003287,2]
[387985819,1758951038224,-151.0,0.0003287,2]
[387985821,1758951038234,-151.0,0.0003287,2]
[387985823,1758951038243,-153.9317284,0.0003287,2]
[387985825,1758951038252,-151.0,0.0003287,2]
[387985827,1758951038262,-344.62264735,0.00032873,5]
[387985829,1758951038271,-738.180916,0.00032877,2]
[387985831,1758951038280,-154.30524325,0.00032879,3]
[387985833,1758951038290,-979.0,0.0003288,2]
[387985835,1758951038299,-2161.0,0.0003288,2]
[387985837,1758951038308,-42.46009336,0.0003288,2]
[387985844,1758951038365,-592.53990664,0.0003288,2]
[387985846,1758951038375,-425.934,0.0003288,2]
[387985848,1758951038384,-2657.288385,0.00032887,2]
[387985850,1758951038394,-29480.7503605,0.00032894,2]
[387985852,1758951038404,-606.27250622,0.00032894,2]
[387985854,1758951038414,-293.61,0.00032894,3]
[387985856,1758951038423,-880.86,0.00032894,3]
[387985858,1758951038432,-9927.8571876,0.00032899,2]
[387985860,1758951038442,-202.18283777,0.00032899,10]
[387985862,1758951038451,-151.0,0.000329,19]
[387985864,1758951038460,-175.97,0.000329,120]
[387985866,1758951038470,-235.29267195,0.000329,15]
[387985868,1758951038480,-151.0,0.000329,10]
[387985870,1758951038489,-151.0,0.000329,14]
[387985872,1758951038499,-151.0,0.000329,19]
[387985874,1758951038508,-500.0,0.000329,19]
[387985876,1758951038517,-155.94562016,0.000329,19]
[387985878,1758951038526,-151.0,0.000329,19]
[387985880,1758951038535,-153.16094079,0.000329,19]
[387985882,1758951038545,-151.0,0.000329,15]
[387985884,1758951038554,-151.0,0.000329,14]
[387985886,1758951038563,-151.0,0.000329,17]
[387985888,1758951038573,-500.0,0.000329,10]
[387985890,1758951038581,-429.29735827,0.00032903,7]
[387985892,1758951038591,-500.0,0.00032903,7]
[387985893,1758951038600,-306.97823306,0.00032903,7]
[387985895,1758951038610,-4468.88153356,0.00032904,2]
[387985897,1758951038619,-258.451763,0.00032904,10]
[387985899,1758951038628,-1612875.5123477,0.00032904,20]
[387985902,1758951038640,-923.28445963,0.00032904,20]
[387986038,1758951040161,-1196.62258383,0.00032904,20]
[387986347,1758951043158,-1337.8714508,0.00032904,60]
[387986361,1758951043276,-185.68153256,0.00032904,60]
[387986362,1758951043285,-920.38129747,0.00032904,20]
[387986370,1758951043342,-3970.0,0.00032904,20]
[387986372,1758951043354,-11495.89037703,0.00032904,20]
[387986668,1758951046066,-190.39609254,0.00032704,2]
[387986670,1758951046075,-7075.98945719,0.00032904,20]
[387986672,1758951046087,-4283.70000004,0.00032904,20]
[387986675,1758951046098,-1134.9599999,0.00032904,20]
[387986677,1758951046109,-754.21773,0.00032904,20]
[387986732,1758951046649,-382.18994283,0.00032904,20]
[387989674,1758951222139,259.78,0.000249,2]
[387989676,1758951479920,164.25,0.00018182,14]
[387989677,1758951480195,164.25,0.00018182,17]
[387989678,1758951501319,418.32292495,0.00026296,2]
[387989682,1758951592245,1342.0,0.00026296,2]
[387989683,1758951762688,1683.34,0.00026296,2]
[387989684,1758951763251,-199.337,0.00026301,2]
[387989685,1758951778174,1414.27046146,0.00026296,2]
[387989686,1758951793846,1235.24055913,0.00026296,2]
[387989687,1758951816816,1235.23055913,0.00026296,2]
[387989688,1758951817998,464.0,0.00028,120]
[387989689,1758951832717,969.73946082,0.00026296,2]
[387989690,1758951855728,969.72946082,0.00026296,2]
[387989691,1758951878446,969.71946082,0.00026296,2]
[387989696,1758951901125,969.70946082,0.00026296,2]
[387989697,1758951909104,553.030577,0.00026296,2]
[387989698,1758951909128,2086.40443964,0.00026296,2]
[387989699,1758951924574,1475.54070752,0.00026296,2]
[387989700,1758951928837,3574.0,0.0002587,7]
[387989701,1758951939906,560.84532687,0.00026296,2]
[387989702,1758951943123,-721.67699914,0.00032465,5]
[387989703,1758951948546,969.68946082,0.00026296,2]
[387989704,1758951961149,161.0,9e-07,2]
[387989705,1758952033135,-278.32300086,0.00032465,5]
[387989706,1758952033156,-418.85859342,0.00032604,2]
[387989707,1758952033302,-582.00326225,0.00032604,2]
[387989708,1758952033323,-233.0,0.00032651,2]
[387989709,1758952033343,-308.04696724,0.00032702,2]
[387989710,1758952033363,-178.64646737,0.00032702,2]
[387989711,1758952033383,-246.5028952,0.00032703,3]
[387989712,1758952053093,-400.0,0.00032703,2]
[387989713,1758952053115,-387.28925088,0.00032703,3]
[387989725,1758952160211,167.5081595,0.00015804,2]
[387989735,1758952175345,158.29744,0.00027465,2]
[387989736,1758952175366,1402.54693199,0.00027465,2]
[387989737,1758952200273,156.21597741,0.00025205,2]
[387989744,1758952230923,153.0,9e-07,2]
[387989769,1758952232270,-420.48729376,0.00027465,2]
[387989770,1758952232289,-540.60783231,0.00027465,2]
[387989781,1758952235940,181.0,0.00023342,9]
[387989797,1758952238186,-500.36794466,0.00027464,2]
[387989799,1758952238195,-183.33,0.00027464,2]
[387989801,1758952238205,-500.0,0.00027464,2]
[387989803,1758952238214,-453.6195326,0.00027464,2]
[387989805,1758952238223,-250.11819901,0.00027465,2]
[387989807,1758952238235,-1944.54957005,0.00027465,2]
[387989809,1758952238245,-300.0,0.000275,2]
[387989811,1758952238254,-300.0,0.000302,2]
[387989813,1758952238264,-168.0,0.00032371,2]
[387989815,1758952238274,-875.75412365,0.00032675,2]
[387989817,1758952238283,-400.0,0.00032699,2]
[387989819,1758952238293,-185.0,0.00032699,3]
[387989821,1758952238302,-300.0,0.000327,2]
[387989823,1758952238312,-300.0,0.000327,2]
[387989825,1758952238321,-160.71074912,0.00032703,3]
[387989827,1758952238330,-247.73162867,0.00032703,2]
[387989829,1758952238339,-242.09346992,0.00032703,2]
[387989831,1758952238348,-182.05803381,0.00032703,2]
[387989833,1758952238357,-9394.33879478,0.00032704,2]
[387989835,1758952238368,-594.82644238,0.00032704,2]
[387989837,1758952238379,-3640.00005,0.00032704,2]
[387989840,1758952238399,-15756.69254041,0.00032704,2]
[387989842,1758952238408,-778.0,0.00032775,2]
[387989844,1758952238418,-385.32963392,0.00032781,2]
[387989846,1758952238427,-1229.01908018,0.00032781,2]
[387989848,1758952238436,-357.06180266,0.00032781,2]
[387989850,1758952238445,-304.84797171,0.00032781,2]
[387989852,1758952238455,-538.55560344,0.00032781,2]
[387989854,1758952238464,-204.44442392,0.00032781,2]
[387989856,1758952238473,-3290.88347323,0.00032781,2]
[387989858,1758952238483,-453.0,0.000328,14]
[387989860,1758952238492,-162.49,0.000328,14]
[387989862,1758952238502,-150.99,0.000328,17]
[387989864,1758952238511,-300.0,0.000328,2]
[387989866,1758952238520,-7204.41279945,0.00032806,2]
[387989868,1758952238530,-338.98919878,0.00032806,2]
[387989870,1758952238539,-677.55954487,0.00032806,2]
[387989872,1758952238548,-184.11805619,0.00032806,2]
[387989874,1758952238558,-979.0,0.00032874,2]
[387989876,1758952238568,-2161.0,0.00032874,2]
[387989878,1758952238577,-635.0,0.00032874,2]
[387989880,1758952238587,-1000.0,0.00032876,5]
[387989882,1758952238596,-701.27187,0.00032877,2]
[387989884,1758952238606,-215.80242993,0.0003289,3]
[387989886,1758952238616,-492.47524719,0.0003289,3]
[387989888,1758952238625,-235.29267195,0.00032893,15]
[387989890,1758952238635,-293.61,0.00032896,3]
[387989892,1758952238644,-880.86,0.00032896,3]
[387989894,1758952238653,-151.0,0.000329,14]
[387989896,1758952238663,-151.0,0.000329,14]
[387989898,1758952238672,-151.0,0.000329,17]
[387989900,1758952238682,-151.0,0.000329,16]
[387989902,1758952238691,-151.0,0.000329,20]
[387989904,1758952238700,-151.0,0.000329,15]
[387989906,1758952238709,-151.0,0.000329,14]
[387989908,1758952238718,-2657.2883851,0.00032902,2]
[387989910,1758952238727,-202.18283777,0.00032903,10]
[387989912,1758952238737,-7799.2951664,0.00032904,2]
[387989914,1758952238747,-335.065,0.00032904,120]
[387989916,1758952238756,-160.91597898,0.00032905,10]
[387989918,1758952238765,-164.92,0.00032905,120]
[387989920,1758952238775,-578.04046691,0.00032905,7]
[387989922,1758952238784,-564.88476314,0.00032905,7]
[387989924,1758952238794,-424.8020789,0.00032905,7]
[387989926,1758952238803,-157.748,0.00032905,2]
[387989928,1758952238812,-500.0,0.00032905,10]
[387989930,1758952238822,-8937.76306712,0.00032905,2]
[387989932,1758952238831,-265.0,0.00032906,120]
[387989934,1758952238841,-1381426.76920272,0.00032906,20]
[387989936,1758952238850,-616.5195758,0.00032906,2]
[387989938,1758952238859,-150.0,0.00032906,30]
[387989940,1758952238869,-150.0,0.00032906,2]
[387989942,1758952238879,-220775.88478155,0.00032906,20]
[387990069,1758952240089,-300.0,0.000275,2]
[387990071,1758952240099,-20301.69365,0.00032906,20]
[387990365,1758952243155,-250.0,0.00032874,2]
[387990367,1758952243165,-12667.98114545,0.00032906,20]
[387990384,1758952243322,-536.11930089,0.00032906,20]
[387993007,1758952399414,160.0,0.0002,7]
[387993008,1758952450807,11.16586708,0.00026296,2]
[387993009,1758952450829,633.08236197,0.00026296,2]
[387993010,1758952472890,258.4527694,0.00026296,2]
[387993011,1758952481423,472.74926521,0.00026296,2]
[387993012,1758952496513,491.86823665,0.00026296,2]
[387993013,1758952500251,269.7412961,0.00025205,2]
[387993018,1758952550146,198.0,0.00024438,13]
[387993020,1758952577180,300.0,0.000252,2]
[387993021,1758952588616,300.0,0.000252,2]
[387993034,1758952603100,300.0,0.000252,2]
[387993035,1758952613523,300.0,0.000252,2]
[387993036,1758952622745,627.98440412,0.00025204,2]
[387993037,1758952624390,300.0,0.000252,2]
[387993038,1758952646764,300.0,0.000252,2]
[387993039,1758952647341,300.0,0.000252,2]
[387993040,1758952650387,581.12108543,0.00026296,2]
[387993041,1758952658337,300.0,0.000252,2]
[387993042,1758952658538,300.0,0.000252,2]
[387993043,1758952668976,300.0,0.000252,2]
[387993044,1758952671531,300.0,0.000252,2]
[387993045,1758952675350,302.42545213,0.00025074,14]
[387993047,1758952688257,6088.47905832,0.000199,2]
[387993048,1758952688282,10000.01,0.000199,2]
[387993049,1758952688309,7446.65163685,0.000199,2]
[387993050,1758952690348,300.0,0.000252,2]
[387993051,1758952695165,2253.35836315,0.00026296,2]
[387993052,1758952695189,2746.64163685,0.00026296,2]
[387993053,1758952695490,300.0,0.000252,2]
[387993054,1758952703572,4718.79377712,0.00026296,2]
[387993055,1758952711996,2234.57458603,0.00026296,2]
[387993056,1758952712021,1446.65163685,0.00026296,2]
[387993057,1758952720587,5000.0,0.00026296,2]
[387993058,1758952729305,3553.35836315,0.00026296,2]
[387993059,1758952729329,1446.64163685,0.00026296,2]
[387993060,1758952745736,5000.0,0.00026296,2]
[387993061,1758952753504,3553.36836315,0.00026296,2]
[387993062,1758952753526,1446.63163685,0.00026296,2]
[387993063,1758952769089,5000.0,0.00026296,2]
[387993064,1758952777259,3553.37836315,0.00026296,2]
[387993065,1758952777283,1406.5205552,0.00026296,2]
[387993066,1758952785548,4852.52175903,0.00026296,2]
[387993067,1758952786079,980.2293593,0.00026165,16]
[387993068,1758952788988,186.0,9e-07,2]
[387993069,1758952793548,2574.73832647,0.00026296,2]
[387993070,1758952793572,2425.26167353,0.00026296,2]
[387993071,1758952801752,4895.68199857,0.00026296,2]
[387993072,1758952803259,500.0,0.00025205,2]
[387993073,1758952803750,500.0,0.00025205,2]
[387993074,1758952818043,1679.0663279,0.00026296,2]
[387993075,1758952818068,3320.9336721,0.00026296,2]
[387993076,1758952826030,3478.19666268,0.00026296,2]
[387993077,1758952837668,500.0,8.219e-05,2]
[387993078,1758952841818,2700.87966522,0.00026296,2]
[387993079,1758952841842,2299.12033478,0.00026296,2]
[387993081,1758952865263,5000.0,0.00026296,2]
[387993082,1758952888598,2700.88966522,0.00026296,2]
[387993083,1758952888627,2299.11033478,0.00026296,2]
[387993084,1758952912286,5000.0,0.00025205,2]
[387993085,1758952920972,3945.91011183,0.00026297,2]
[387993087,1758952937144,1054.09988817,0.00026297,2]
[387993088,1758952937168,3945.90011183,0.00026297,2]
[387993089,1758952960631,5000.0,0.00026297,2]
[387993090,1758952981953,-300.0,0.000263,2]
[387993091,1758952983049,123.9183814,0.00026297,2]
[387993092,1758952983074,1054.10988817,0.00026297,2]
[387993093,1758952983097,3821.97173043,0.00026297,2]
[387993094,1758952991141,1284.61516317,0.00026297,2]
[387993095,1758953007170,4893.4231064,0.00026297,2]
[387993096,1758953007191,106.5768936,0.00026297,2]
[387993097,1758953015797,514.89525663,0.00026297,2]
[387993098,1758953024198,514.89525663,0.00026297,2]
[387993099,1758953032160,5000.0,0.00026297,2]
[387993100,1758953038653,417.15472785,0.00026297,2]
[387993101,1758953039070,417.15472785,0.00025,30]
[387993102,1758953039724,417.15472785,0.00026,60]
[387993103,1758953043704,274.38732405,0.000253,2]
[387993104,1758953048003,514.89525663,0.00026297,2]
[387993105,1758953056077,1822.89582891,0.00026297,2]
[387993106,1758953056101,3177.10417109,0.00026297,2]
[387993107,1758953059715,3337.2378228,0.00026297,2]
[387993108,1758953064333,2638.87322176,0.00026297,2]
[387993109,1758953072353,846.79478435,0.00026297,2]
[387993110,1758953072375,2737.89346049,0.00026297,2]
[387993111,1758953080720,5000.0,0.00026297,2]
[387993112,1758953088744,2262.11653951,0.00026297,2]
[387993113,1758953088768,483.67215526,0.00026297,2]
[387993114,1758953104239,5000.0,0.00026297,2]
[387993115,1758953112177,3988.88362556,0.00026297,2]
[387993116,1758953129010,527.45421918,0.00026297,2]
[387993117,1758953129036,4472.54578082,0.00026297,2]
[387993118,1758953136942,2930.71146157,0.00026297,2]
[387993119,1758953152896,2596.75275761,0.00026297,2]
[387993120,1758953152921,2403.24724239,0.00026297,2]
[387993121,1758953155115,-191.47384583,0.000263,2]
[387993122,1758953155136,-186.57029197,0.00030696,2]
[387993123,1758953155159,-361.08636947,0.00030796,2]
[387993124,1758953155179,-296.09016566,0.00031,2]
[387993125,1758953155200,-213.47710216,0.00031196,2]
[387993126,1758953155222,-168.0,0.00031396,2]
[387993127,1758953155243,-149.81601601,0.00031579,2]
[387993132,1758953175631,5000.0,0.00026297,2]
[387993133,1758953184173,2596.76275761,0.00026297,2]
[387993134,1758953184196,2137.84602166,0.00026297,2]
[387993135,1758953199878,5000.0,0.00026297,2]
[387993136,1758953208376,2862.16397834,0.00026297,2]
[387993137,1758953208399,2137.83602166,0.00026297,2]
[387993138,1758953223810,4941.52169786,0.00026297,2]
[387993139,1758953231805,5000.0,0.00026297,2]
[387993141,1758953237088,-18.18398399,0.00031579,2]
[387993142,1758953237108,-180.812782,0.00031612,60]
[387993143,1758953237130,-155.44912711,0.000318,120]
[387993144,1758953237150,-95.5541069,0.00032,2]
[387993145,1758953244088,-459.80348552,0.00032,2]
[387993146,1758953254084,-444.64240758,0.00032,2]
[387993147,1758953254110,-168.0,0.0003217,2]
[387993148,1758953254133,-400.0,0.00032209,2]
[387993149,1758953254156,-500.0,0.0003221,2]
[387993150,1758953254177,-217.74082574,0.0003221,2]
[387993151,1758953254200,-206.90683728,0.0003221,2]
[387993152,1758953254226,-200.0,0.0003221,2]
[387993153,1758953254249,-1600.0,0.0003221,3]
[387993154,1758953254273,-3290.88347323,0.00032211,2]
[387993155,1758953254296,-300.0,0.00032211,3]
[387993156,1758953254319,-979.0,0.00032214,2]
[387993157,1758953254341,-638.538,0.00032214,2]
[387993158,1758953254363,-2161.0,0.00032214,2]
[387993159,1758953254386,-425.934,0.00032214,2]
[387993160,1758953254409,-327.64931952,0.0003266,2]
[387993161,1758953254434,-335.065,0.00032703,120]
[387993162,1758953254458,-1361.967,0.00032703,120]
[387993163,1758953254481,-1000.0,0.00032703,5]
[387993164,1758953254504,-389.73238878,0.00032804,2]
[387993165,1758953254526,-173.41214007,0.00032804,2]
[387993166,1758953254549,-176.67898819,0.00032805,2]
[387993167,1758953254571,-316.33288462,0.00032805,2]
[387993170,1758953280189,58.48830214,0.00018182,2]
[387993171,1758953280211,171.45169786,0.00018182,2]
[387993172,1758953374631,227.1885933,0.000199,2]
[387993173,1758953374680,227.1885933,0.00021372,2]
[387993174,1758953374708,227.1885933,0.00025788,4]
[387993175,1758953374791,227.1885933,0.00024316,2]
[387993176,1758953375021,227.1885933,0.00028731,10]
[387993177,1758953375598,227.1885933,0.00022844,2]
[387993178,1758953375668,88.69731827,0.00027259,7]
[387993179,1758953406037,167.41472179,0.000253,2]
[387993210,1758953432434,-138.49127503,0.00027259,7]
[387993211,1758953432444,-227.1885933,0.00030203,13]
[387993212,1758953432453,-227.1885933,0.00031675,16]
[387993213,1758953432463,-154.55216391,0.00032541,2]
[387993214,1758953432472,-77.86047468,0.00032641,30]
[387993216,1758953432483,-1282.78247447,0.00032641,30]
[387993218,1758953432492,-360.89473965,0.000328,2]
[387993220,1758953432501,-246.86741215,0.000328,2]
[387993222,1758953432510,-13674.63428034,0.000328,4]
[387993262,1758953438398,-272.81267215,0.00032799,2]
[387993264,1758953438408,-724.63680619,0.000328,4]
[387993266,1758953438419,-393.04281597,0.000328,4]
[387993269,1758953438431,-7987.81958827,0.000328,4]
[387993271,1758953438439,-536.54,0.00032805,2]
[387993272,1758953438449,-24.8681468,0.00032805,2]
[387993274,1758953438458,-7204.41279945,0.00032805,2]
[387993276,1758953438467,-7901.96717771,0.00032805,2]
[387993290,1758953438585,-7854.7253627,0.00032805,2]
[387993292,1758953438596,-3407.3285396,0.00032806,2]
[387993294,1758953438605,-677.55954487,0.00032806,2]
[387993296,1758953438615,-168.0,0.00032857,2]
[387993298,1758953438624,-227.427,0.00032874,2]
[387993300,1758953438633,-250.0,0.00032874,2]
[387993302,1758953438647,-263.042,0.00032874,2]
[387993304,1758953438656,-295.0,0.00032874,2]
[387993306,1758953438666,-292.715,0.00032874,2]
[387993308,1758953438676,-774.963968,0.00032877,2]
[387993310,1758953438685,-161.528,0.00032885,34]
[387993312,1758953438695,-293.61,0.00032896,3]
[387993314,1758953438704,-277.32,0.00032896,3]
[387993316,1758953438713,-831.97,0.00032896,3]
[387993318,1758953438723,-2128.5620212,0.00032896,2]
[387993320,1758953438733,-151.0,0.000329,12]
[387993322,1758953438743,-151.0,0.000329,12]
[387993324,1758953438753,-151.0,0.000329,14]
[387993326,1758953438763,-151.0,0.000329,18]
[387993329,1758953438773,-151.0,0.000329,17]
[387993331,1758953438783,-151.0,0.000329,13]
[387993333,1758953438792,-151.0,0.000329,16]
[387993335,1758953438802,-10343.2230512,0.00032904,2]
[387993337,1758953438812,-235.29267195,0.00032904,15]
[387993339,1758953438821,-202.18283777,0.00032905,10]
[387993341,1758953438831,-160.91597898,0.00032905,10]
[387993343,1758953438840,-164.92,0.00032905,120]
[387993345,1758953438850,-151.0,0.00032905,2]
[387993347,1758953438859,-500.0,0.00032905,2]
[387993349,1758953438869,-200.77150509,0.00032905,2]
[387993351,1758953438879,-272.80619443,0.00032905,2]
[387993353,1758953438888,-155.94562016,0.00032905,2]
[387993355,1758953438899,-151.0,0.00032905,2]
[387993357,1758953438909,-153.16094079,0.00032905,2]
[387993359,1758953438918,-5000.0,0.00032905,60]
[387993361,1758953438928,-4097.36633683,0.00032905,60]
[387993363,1758953438937,-8937.76306712,0.00032905,2]
[387993365,1758953438947,-265.0,0.00032906,120]
[387993367,1758953438957,-1616882.68601153,0.00032906,20]